bitfinex-derivatives/quotes_ETHF0:USTF0_20250804
["timestamp","ask_amount","ask_price","bid_price","bid_amount"]
[1754297989059,3.2078,3550.8,3550.3,3.2078]
[1754297989356,20.16544057,3550.7,3550.3,3.2078]
[1754297989556,0.56326,3550.5,3550.3,3.77108]
[1754297989752,19.275,3550.4,3550.3,3.2078]
[1754297991253,0.56329,3550.3,3550.1,0.56331]
[1754297992556,19.275,3550.4,3550.3,0.56329]
[1754297992961,3.2078,3550.8,3549.9,3.2078]
[1754297993157,0.73998841,3550.7,3550.6,0.56324]
[1754297993362,19.275,3550.7,3550.6,0.56324]
[1754297993566,20.01498841,3550.7,3550.6,0.56324]
[1754297994062,19.275,3550.7,3550.6,0.56324]
[1754297994259,19.275,3550.7,3550.5,0.56325]
[1754297994567,3.2078,3551.2,3551.1,0.56316]
[1754297994757,0.56316,3551.1,3551.0,0.56317]
[1754297994957,1.45596636,3551.1,3551.0,0.56317]
[1754297995263,1.30482205,3551.1,3551.0,0.56317]
[1754297995454,20.57882205,3551.1,3551.0,0.56317]
[1754297995857,20.01566205,3551.1,3551.0,0.56317]
[1754297997262,20.16680761,3551.1,3551.0,0.56317]
[1754297997869,0.56318,3551.0,3550.9,0.56318]
[1754297998066,19.274,3551.1,3550.9,0.56318]
[1754297998568,19.83717,3551.1,3550.9,0.56318]
[1754297999167,19.274,3551.1,3550.9,0.56318]
[1754297999767,19.83716,3551.1,3550.9,0.56318]
[1754298000060,19.274,3551.1,3550.9,0.56318]
[1754298000661,3.2078,3551.2,3551.1,0.56316]
[1754298000861,40.565,3551.3,3551.1,3.77096]
[1754298001065,4.21233087,3552.0,3551.8,0.56305]
[1754298001269,20.16544612,3551.9,3551.8,0.56305]
[1754298001472,20.01422017,3551.9,3551.8,0.56305]
[1754298002074,0.74222017,3551.9,3551.8,0.56305]
[1754298002373,0.74222017,3552.2,3552.1,0.563]
[1754298002669,20.01222017,3552.4,3552.3,0.56297]
[1754298003077,19.27,3552.4,3552.3,0.56297]
[1754298003282,0.10165,3552.8,3552.7,0.56291]
[1754298003468,19.37165,3552.8,3552.7,3.77071]
[1754298004168,20.11248948,3552.8,3552.7,3.2078]
[1754298004374,20.11185433,3552.8,3552.7,3.2078]
[1754298004563,20.11185433,3552.8,3552.2,0.56297]
[1754298004564,0.56296,3552.4,3552.2,0.56297]
[1754298004765,19.27,3552.3,3552.2,0.56297]
[1754298004962,0.56295,3552.5,3552.2,0.56297]
[1754298005174,19.266,3552.4,3552.3,0.56296]
[1754298006167,19.266,3552.4,3552.2,0.56297]
[1754298006764,19.266,3552.4,3551.9,0.56302]
[1754298006971,0.56301,3552.1,3551.8,3.2078]
[1754298007172,19.266,3552.0,3551.8,3.2078]
[1754298007376,19.266,3552.0,3551.9,0.56303]
[1754298008373,19.266,3552.0,3551.8,3.2078]
[1754298008673,19.266,3552.0,3551.8,3.77084]
[1754298009072,19.266,3552.0,3551.8,3.2078]
[1754298009376,19.82903,3552.0,3551.8,3.2078]
[1754298012476,19.82903,3552.0,3551.8,3.77084]
[1754298012782,19.82903,3552.0,3551.8,3.2078]
[1754298013575,19.263,3551.9,3551.8,3.77085]
[1754298013776,19.263,3551.9,3551.8,3.2078]
[1754298014082,0.56302,3552.0,3551.8,3.2078]
[1754298014083,19.263,3552.0,3551.9,0.56303]
[1754298014471,19.82603,3552.0,3551.8,3.2078]
[1754298015176,19.82603,3552.0,3551.8,3.77084]
[1754298015575,0.563,3552.2,3552.0,0.563]
[1754298015883,0.56302,3552.0,3551.9,0.56302]
[1754298016383,19.82501,3552.1,3551.9,0.56302]
[1754298016978,19.262,3552.1,3551.9,0.56302]
[1754298017282,19.262,3552.0,3551.9,0.56302]
[1754298019287,0.56303,3551.9,3551.8,3.77084]
[1754298020086,19.262,3552.0,3551.8,3.77084]
[1754298020785,0.56297,3552.3,3552.2,0.56297]
[1754298021087,0.56294,3552.5,3552.4,0.56295]
[1754298021282,19.262,3552.5,3552.4,0.56295]
[1754298022385,0.56293,3552.6,3552.4,0.56295]
[1754298022584,19.262,3552.5,3552.4,0.56295]
[1754298023590,19.261,3552.5,3552.4,0.56295]
[1754298023884,0.10165,3552.8,3552.2,3.2078]
[1754298023885,0.10165,3552.8,3552.6,0.56292]
[1754298024094,19.261,3552.7,3552.6,3.77072]
[1754298026093,0.10165,3552.8,3552.6,3.77072]
[1754298026286,19.26,3552.7,3552.6,3.77072]
[1754298027288,19.259,3552.7,3552.6,3.77072]
[1754298032396,19.259,3552.7,3552.6,3.2078]
[1754298043210,0.10165,3552.8,3552.7,0.56291]
[1754298043412,19.35665,3552.8,3552.7,0.56291]
[1754298044812,0.56291,3552.7,3552.6,3.77071]
[1754298045005,0.56291,3552.7,3552.6,3.2078]
[1754298045206,19.91955,3552.8,3552.7,0.56291]
[1754298045409,19.91955,3552.8,3552.6,3.77071]
[1754298048121,19.254,3552.7,3552.6,3.77071]
[1754298048619,0.10165,3552.8,3552.6,3.77071]
[1754298049110,19.253,3552.7,3552.6,3.77071]
[1754298051616,19.252,3552.7,3552.6,3.77071]
[1754298053106,0.10165,3552.8,3552.6,3.77071]
[1754298053312,19.252,3552.7,3552.6,3.77071]
[1754298053717,0.10165,3552.8,3552.6,3.77071]
[1754298053918,19.252,3552.7,3552.6,3.77071]
[1754298056820,0.10165,3552.8,3552.6,3.77071]
[1754298057020,19.251,3552.7,3552.6,3.77071]
[1754298058618,0.10165,3552.8,3552.6,3.77071]
[1754298059224,0.4198,3553.0,3552.9,0.56287]
[1754298059421,19.25,3553.4,3553.3,0.56281]
[1754298059719,40.53,3553.7,3553.6,0.56276]
[1754298059919,59.78,3553.7,3553.6,0.56276]
[1754298060315,61.18691,3553.7,3553.3,3.2078]
[1754298060515,0.56285,3553.1,3552.9,3.2078]
[1754298060714,19.249,3553.0,3552.5,3.2078]
[1754298060920,0.56292,3552.6,3552.5,3.2078]
[1754298061116,19.249,3552.6,3552.5,3.2078]
[1754298061622,19.249,3552.6,3552.5,3.77074]
[1754298061822,19.249,3552.6,3552.5,3.2078]
[1754298065932,0.56292,3552.7,3552.6,0.56291]
[1754298066120,19.81192,3552.7,3552.6,0.56291]
[1754298066425,19.81192,3552.7,3552.5,3.77073]
[1754298066626,19.81192,3552.7,3552.5,3.2078]
[1754298067327,19.249,3552.6,3552.5,3.77074]
[1754298067931,19.249,3552.6,3552.5,3.2078]
[1754298068232,0.563,3552.2,3552.0,3.77081]
[1754298068433,19.249,3552.1,3552.0,3.77081]
[1754298068928,19.249,3552.1,3552.0,3.79287361]
[1754298070236,0.56291,3552.7,3552.1,1.40749]
[1754298070431,19.81193,3552.6,3552.5,0.56294]
[1754298070928,19.81193,3552.6,3552.5,0.58500361]
[1754298072734,19.249,3552.6,3552.5,0.58500361]
[1754298073834,0.56292,3552.7,3552.5,0.58500361]
[1754298074041,19.22693639,3552.6,3552.5,0.56294]
[1754298074525,19.249,3552.6,3552.5,0.56294]
[1754298075337,0.56292,3552.7,3552.5,0.56294]
[1754298075538,0.56293,3552.6,3552.5,0.56293]
[1754298075837,19.81193,3552.6,3552.5,0.56293]
[1754298078937,19.249,3552.6,3552.5,0.56293]
[1754298079132,40.532,3553.2,3552.5,0.56293]
[1754298079337,20.70207524,3553.1,3552.9,0.56286]
[1754298079539,0.56289,3552.9,3552.8,0.56288]
[1754298079930,0.56287,3553.0,3552.9,0.56286]
[1754298080126,19.81085,3553.1,3552.9,0.56286]
[1754298080332,40.532,3553.2,3553.1,0.56284]
[1754298080839,59.78,3553.2,3553.1,0.56284]
[1754298081531,40.532,3553.2,3553.1,0.56284]
[1754298081731,0.56272,3553.9,3553.8,0.56272]
[1754298081938,0.89142452,3554.1,3554.0,0.5627]
[1754298082129,20.13942452,3554.1,3554.0,0.5627]
[1754298082326,0.89142452,3554.1,3554.0,0.5627]
[1754298082531,41.09666,3554.3,3554.2,0.56267]
[1754298082739,0.56268,3554.2,3554.0,0.56269]
[1754298082934,0.56269,3554.1,3553.9,0.56271]
[1754298083141,19.80869,3554.1,3553.9,0.56271]
[1754298083640,0.56272,3553.9,3553.8,0.56272]
[1754298083837,0.56278,3553.6,3553.4,3.2078]
[1754298084042,0.5628,3553.4,3553.1,0.56284]
[1754298084236,0.56284,3553.2,3553.0,3.77065]
[1754298084634,0.56284,3553.2,3553.0,3.2078]
[1754298084833,0.56288,3552.9,3552.7,0.5629]
[1754298085039,19.245,3552.8,3552.6,3.2078]
[1754298085240,19.245,3552.8,3552.7,0.56291]
[1754298087447,19.245,3552.8,3552.6,3.77072]
[1754298087448,0.56291,3552.7,3552.6,3.77072]
[1754298087650,19.245,3552.8,3552.6,3.77072]
[1754298088543,19.8079,3552.8,3552.6,3.77072]
[1754298088744,19.245,3552.8,3552.6,3.77072]
[1754298092352,19.8079,3552.8,3552.6,3.77072]
[1754298093255,1.40731,3552.6,3552.1,3.2078]
[1754298093555,19.245,3552.8,3552.1,3.2078]
[1754298093757,0.56296,3552.4,3552.2,0.56298]
[1754298094054,19.244,3552.3,3552.2,0.56298]
[1754298095857,4.61499,3553.0,3552.5,0.56292]
[1754298096158,0.56292,3552.7,3552.6,0.56292]
[1754298096358,0.5629,3552.8,3552.7,0.56289]
[1754298096555,0.56286,3553.0,3552.9,0.56286]
[1754298096759,19.244,3553.0,3552.8,0.56288]
[1754298096955,19.244,3552.9,3552.8,0.56289]
[1754298097152,0.56284,3553.2,3553.1,0.56283]
[1754298097358,19.244,3553.2,3553.1,0.56283]
[1754298097862,0.56284,3553.1,3553.0,0.56285]
[1754298098759,19.80683,3553.2,3553.0,0.56285]
[1754298100154,19.244,3553.2,3553.0,0.56285]
[1754298100357,19.80683,3553.2,3553.0,0.56285]
[1754298100959,0.56286,3553.0,3552.9,3.77066]
[1754298101161,0.56286,3553.0,3552.1,2.81501]
[1754298101162,19.244,3553.2,3552.6,0.56292]
[1754298101865,0.56294,3552.6,3552.4,3.2078]
[1754298102064,19.243,3552.5,3552.4,3.2078]
[1754298104164,3.2078,3553.1,3552.4,3.2078]
[1754298104365,1.40699,3553.5,3552.8,3.2078]
[1754298104565,0.56286,3553.1,3553.0,0.56285]
[1754298105367,0.56284,3553.2,3553.1,0.56283]
[1754298105962,0.56285,3553.1,3553.0,0.56285]
[1754298107971,0.56285,3553.1,3552.8,3.2078]
[1754298107972,0.56287,3553.0,3552.9,0.56287]
[1754298108170,19.80487,3553.0,3552.8,3.2078]
[1754298108364,0.56295,3552.5,3552.4,3.2078]
[1754298108564,19.80495,3552.5,3552.4,3.2078]
[1754298111873,19.242,3552.5,3552.4,3.2078]
[1754298112875,4.6149,3553.2,3552.4,3.2078]
[1754298113075,20.13222304,3553.1,3552.4,3.2078]
[1754298113267,0.56292,3552.7,3552.5,0.56294]
[1754298113468,19.242,3552.6,3552.5,0.56294]
[1754298118876,0.56294,3552.5,3552.4,3.2078]
[1754298119374,0.563,3552.1,3552.0,3.2078]
[1754298119574,0.563,3552.1,3551.6,3.2078]
[1754298119575,0.56306,3551.8,3551.6,3.2078]
[1754298119782,19.241,3551.7,3551.6,3.2078]
[1754298120079,0.56312,3551.4,3551.2,3.77093]
[1754298120278,19.241,3551.3,3551.2,3.77093]
[1754298121677,3.2078,3552.0,3551.2,4.61565]
[1754298121981,0.56306,3551.8,3551.6,0.56307]
[1754298122280,19.242,3551.7,3551.6,0.56307]
[1754298122672,0.56308,3551.6,3551.4,0.5631]
[1754298122874,19.242,3551.7,3551.2,3.2078]
[1754298122875,0.56312,3551.4,3551.2,3.2078]
[1754298123079,19.242,3551.3,3551.2,3.2078]
[1754298123279,19.242,3551.3,3551.2,3.77094]
[1754298124271,19.242,3551.5,3551.3,1.40781]
[1754298124580,0.56311,3551.4,3551.2,3.77093]
[1754298124780,19.80511,3551.5,3551.4,0.56311]
[1754298124980,0.56313,3551.3,3551.2,3.77094]
[1754298125372,0.56312,3551.4,3551.3,0.56311]
[1754298125571,0.56312,3551.4,3551.2,3.77094]
[1754298126778,19.8051,3551.5,3551.3,0.56312]
[1754298127584,0.56313,3551.3,3551.2,3.77093]
[1754298127785,0.56312,3551.4,3551.3,0.56311]
[1754298128084,0.56311,3551.5,3551.3,0.56311]
[1754298128281,19.244,3551.4,3551.3,0.56311]
[1754298128481,3.2078,3552.0,3551.2,3.2078]
[1754298128682,0.56307,3551.7,3551.5,0.56308]
[1754298130082,19.80704,3551.9,3551.7,0.56305]
[1754298130387,19.244,3551.8,3551.7,0.56305]
[1754298130584,0.56306,3551.7,3551.6,0.56307]
[1754298131989,19.80706,3551.7,3551.6,0.56307]
[1754298132383,19.244,3551.7,3551.6,0.56307]
[1754298134488,19.245,3551.7,3551.4,1.40778]
[1754298134791,19.245,3551.7,3551.5,0.5631]
[1754298136889,0.56303,3552.0,3551.3,1.40779]
[1754298137099,19.80804,3551.9,3551.8,0.56305]
[1754298137392,0.563,3552.2,3552.1,0.56299]
[1754298137592,19.807,3552.2,3552.1,0.56299]
[1754298137780,0.56298,3552.3,3552.2,0.56298]
[1754298137988,19.80698,3552.3,3552.2,0.56298]
[1754298138298,19.244,3552.3,3552.2,0.56298]
[1754298138494,43.7388,3552.4,3552.2,0.56298]
[1754298138689,19.244,3552.3,3552.2,0.56298]
[1754298138996,3.7707,3552.8,3552.7,0.56291]
[1754298139291,23.3425448,3552.8,3552.7,0.56291]
[1754298139795,22.6041605,3552.8,3552.7,0.56291]
[1754298140198,22.6041881,3552.8,3552.7,0.56291]
[1754298140693,22.6031881,3552.8,3552.7,0.56291]
[1754298141092,0.1523881,3552.8,3552.7,0.56291]
[1754298141290,19.243,3552.8,3552.7,0.56291]
[1754298145495,19.243,3552.8,3552.6,0.56292]
[1754298145694,0.56285,3553.1,3552.9,0.56286]
[1754298145896,19.241,3553.0,3552.9,0.56286]
[1754298146398,43.7488,3553.4,3552.6,1.40731]
[1754298146599,19.24,3553.3,3552.6,1.40731]
[1754298146895,0.56282,3553.3,3553.1,0.56282]
[1754298147088,40.541,3553.4,3553.3,0.56281]
[1754298147285,59.78,3553.4,3553.3,0.56281]
[1754298147596,3.2078,3553.9,3553.8,0.56273]
[1754298147786,4.09798769,3553.9,3553.8,0.56273]
[1754298147985,19.239,3553.9,3553.8,0.56273]
[1754298148291,0.5627,3554.1,3554.0,0.5627]
[1754298148492,19.239,3554.1,3554.0,0.5627]
[1754298148692,20.12886743,3554.1,3554.0,0.5627]
[1754298148888,0.88986743,3554.1,3554.0,0.5627]
[1754298149091,19.38921675,3554.1,3553.9,0.56271]
[1754298149293,19.79969,3554.1,3553.9,0.56271]
[1754298149494,19.79969,3554.1,3553.8,0.56272]
[1754298149495,0.56271,3554.0,3553.8,0.56272]
[1754298150193,0.56274,3553.8,3553.6,0.56276]
[1754298150398,19.79976,3553.7,3553.5,3.77057]
[1754298150898,19.237,3553.7,3553.5,3.77057]
[1754298152096,19.79976,3553.7,3553.5,3.2078]
[1754298152294,0.5628,3553.4,3553.3,0.5628]
[1754298152598,0.56277,3553.6,3553.5,0.56278]
[1754298152795,19.79975,3553.7,3553.5,3.77058]
[1754298154002,19.237,3553.7,3553.5,3.77058]
[1754298154298,0.56269,3554.1,3553.9,0.56271]
[1754298154496,0.56266,3554.3,3554.1,0.56267]
[1754298154794,3.2078,3554.4,3554.3,0.56265]
[1754298154999,22.4428,3554.4,3554.3,0.56265]
[1754298155499,19.234,3554.4,3554.3,0.56265]
[1754298156997,19.234,3554.4,3554.3,3.77045]
[1754298157395,3.2078,3555.3,3555.1,0.56252]
[1754298157703,19.234,3555.2,3555.1,0.56252]
[1754298158599,19.234,3555.2,3554.8,0.56257]
[1754298158796,0.56257,3554.9,3554.7,3.2078]
[1754298159107,0.56259,3554.7,3554.5,0.56261]
[1754298159302,19.232,3554.8,3554.7,0.56259]
[1754298159503,3.2078,3555.3,3555.1,0.56251]
[1754298159808,19.232,3555.2,3555.0,0.56253]
[1754298160100,19.232,3555.2,3554.9,0.56255]
[1754298160501,19.232,3555.2,3554.6,3.2078]
[1754298160906,0.56257,3554.9,3554.8,0.56257]
[1754298161104,19.79457,3554.9,3554.8,0.56257]
[1754298161808,19.232,3554.9,3554.8,0.56257]
[1754298162018,0.56254,3555.1,3554.9,0.56255]
[1754298162205,0.56256,3554.9,3554.8,0.56256]
[1754298162807,19.79255,3555.0,3554.8,0.56256]
[1754298163611,0.56258,3554.8,3554.6,0.56259]
[1754298163810,19.23,3554.7,3554.6,0.56259]
[1754298164908,19.23,3554.7,3554.6,3.77039]
[1754298165308,19.228,3554.7,3554.6,3.7704]
[1754298165705,3.2078,3555.3,3555.1,0.56253]
[1754298165907,19.228,3555.2,3555.1,0.56253]
[1754298166706,40.524,3555.5,3555.4,0.56248]
[1754298167107,59.751,3555.5,3555.4,0.56248]
[1754298167905,40.524,3555.5,3555.4,0.56248]
[1754298168111,59.751,3555.5,3555.4,0.56248]
[1754298168315,40.524,3555.5,3555.4,0.56248]
[1754298168503,3.2078,3555.8,3555.7,0.56243]
[1754298168708,22.4348,3555.8,3555.7,0.56243]
[1754298170810,0.56243,3555.7,3555.6,0.56244]
[1754298171016,22.4348,3555.8,3555.6,0.56244]
[1754298172816,22.99722,3555.8,3555.6,0.56244]
[1754298173206,22.4348,3555.8,3555.6,0.56244]
[1754298174315,22.99722,3555.8,3555.6,0.56244]
[1754298176518,19.227,3555.8,3555.6,0.56244]
[1754298177111,19.78942,3555.8,3555.6,0.56244]
[1754298182326,0.56252,3555.2,3555.1,0.56251]
[1754298182624,19.78352,3555.2,3555.1,0.56251]
[1754298182825,19.78352,3555.2,3555.0,3.77034]
[1754298183632,19.221,3555.2,3555.0,3.77034]
[1754298184926,19.78351,3555.2,3555.0,3.77034]
[1754298185221,19.78351,3555.2,3555.0,0.56253]
[1754298185423,19.78351,3555.2,3554.6,3.2078]
[1754298185424,0.56256,3555.0,3554.6,3.2078]
[1754298185722,19.221,3554.9,3554.6,3.2078]
[1754298186320,3.2078,3555.4,3555.2,0.56249]
[1754298186523,19.96111761,3555.3,3555.2,0.56249]
[1754298188827,20.52362761,3555.3,3555.0,0.56254]
[1754298189019,0.74011761,3555.2,3555.0,0.56254]
[1754298190227,0.56247,3555.5,3555.3,0.56249]
[1754298190425,19.221,3555.4,3555.3,0.56249]
[1754298190729,19.221,3555.4,3555.2,0.5625]
[1754298190730,20.11367712,3555.4,3555.2,0.5625]
[1754298190922,19.78348,3555.4,3555.2,0.5625]
[1754298191626,19.221,3555.4,3555.2,0.5625]
[1754298191827,19.78348,3555.4,3555.2,0.5625]
[1754298192519,0.56251,3555.3,3555.1,0.56251]
[1754298193325,19.221,3555.4,3555.3,0.56249]
[1754298193326,0.56248,3555.4,3555.3,0.56249]
[1754298193521,0.56248,3555.4,3555.0,3.2078]
[1754298193522,0.5625,3555.3,3555.2,0.5625]
[1754298193921,19.78348,3555.4,3555.2,0.5625]
[1754298194122,19.221,3555.4,3555.2,0.5625]
[1754298194627,19.78348,3555.4,3555.2,0.5625]
[1754298197427,19.221,3555.4,3555.2,0.5625]
[1754298197629,19.78349,3555.4,3555.2,0.5625]
[1754298198727,19.221,3555.4,3555.2,0.5625]
[1754298199724,3.77022,3555.8,3555.6,0.56245]
[1754298200024,5.0,3556.0,3555.9,0.5624]
[1754298200326,25.11321452,3556.0,3555.9,0.5624]
[1754298200526,25.11320943,3556.0,3555.9,0.5624]
[1754298201231,24.22,3556.0,3555.9,0.5624]
[1754298202934,5.0,3556.0,3555.9,0.5624]
[1754298203126,24.218,3556.0,3555.9,0.5624]
[1754298208538,5.0,3556.0,3555.9,0.5624]
[1754298208737,24.217,3556.0,3555.9,0.5624]
[1754298209140,5.0,3556.0,3555.9,0.5624]
[1754298210134,4.41451,3556.0,3555.9,0.5624]
[1754298211039,3.7237,3556.0,3555.9,0.5624]
[1754298211242,0.56214,3557.6,3556.7,1.40567]
[1754298211444,0.89242054,3557.7,3557.5,0.56214]
[1754298211642,19.36852442,3557.6,3557.5,0.56214]
[1754298211844,20.10842054,3557.6,3557.5,0.56214]
[1754298212139,19.95589612,3557.6,3557.5,0.56214]
[1754298212344,19.216,3557.6,3557.5,0.56214]
[1754298212844,3.2078,3557.8,3557.6,0.56212]
[1754298213043,19.214,3557.7,3557.6,0.56212]
[1754298213241,19.214,3557.7,3557.5,0.56214]
[1754298213440,19.214,3557.7,3557.1,3.2078]
[1754298213641,0.56213,3557.6,3557.3,0.56217]
[1754298213841,19.77612,3557.7,3557.4,0.56215]
[1754298214047,19.214,3557.6,3557.1,3.2078]
[1754298214247,19.214,3557.5,3557.1,3.2078]
[1754298214446,19.214,3557.5,3557.4,0.56216]
[1754298217943,0.56219,3557.3,3557.1,3.2078]
[1754298218152,0.56217,3557.4,3557.3,0.56218]
[1754298218350,0.56217,3557.4,3557.2,0.56218]
[1754298218948,0.56218,3557.3,3557.1,3.2078]
[1754298219148,19.209,3557.2,3557.1,3.2078]
[1754298219349,0.56217,3557.4,3557.2,0.56218]
[1754298219552,19.209,3557.3,3557.2,0.56218]
[1754298219755,0.56214,3557.6,3557.4,0.56216]
[1754298220050,0.56214,3557.6,3557.1,3.2078]
[1754298220051,3.76991,3557.8,3557.6,0.56213]
[1754298220244,19.209,3557.7,3557.6,0.56213]
[1754298220753,0.56213,3557.6,3557.5,0.56213]
[1754298220953,19.77112,3557.7,3557.5,0.56213]
[1754298221153,19.208,3557.6,3557.5,0.56213]
[1754298222152,0.56211,3557.8,3557.7,0.56211]
[1754298222352,19.208,3557.8,3557.7,0.56211]
[1754298222957,0.56212,3557.7,3557.6,0.56212]
[1754298223158,0.56214,3557.6,3557.5,0.56214]
[1754298223558,0.56216,3557.5,3557.4,0.56215]
[1754298223757,0.56217,3557.4,3557.3,0.56217]
[1754298223960,0.56219,3557.3,3557.1,3.2078]
[1754298224254,19.77017,3557.4,3557.3,0.56218]
[1754298224448,19.208,3557.4,3557.3,0.56218]
[1754298225947,3.2078,3557.8,3557.1,3.2078]
[1754298226152,0.56214,3557.6,3557.5,0.56214]
[1754298226552,3.2078,3557.8,3557.7,0.56212]
[1754298226753,22.4148,3557.8,3557.7,0.56212]
[1754298227056,0.56206,3558.1,3558.0,0.56206]
[1754298227252,3.76985,3558.2,3558.0,0.56206]
[1754298227555,19.206,3558.1,3558.0,0.56206]
[1754298228156,19.206,3558.1,3557.9,3.2078]
[1754298228157,0.56202,3558.4,3558.3,0.56201]
[1754298228347,19.206,3558.4,3558.3,0.56201]
[1754298228852,3.2078,3558.8,3558.6,0.56196]
[1754298229056,19.206,3558.7,3558.6,0.56196]
[1754298229256,3.2078,3558.8,3558.6,0.56196]
[1754298229560,19.206,3558.7,3558.6,3.76976]
[1754298230155,1.0,3559.0,3558.9,0.56193]
[1754298230660,20.76592,3559.0,3558.8,0.56193]
[1754298231357,20.76592,3559.0,3558.6,3.2078]
[1754298231358,0.56195,3558.8,3558.6,3.76976]
[1754298232050,0.56195,3558.8,3558.6,3.2078]
[1754298232760,0.56195,3558.8,3558.6,3.76976]
[1754298233261,0.56195,3558.8,3558.6,3.2078]
[1754298233664,1.40486,3558.8,3558.2,3.2078]
[1754298233864,0.562,3558.5,3558.3,0.56201]
[1754298234064,19.202,3558.4,3558.3,0.56201]
[1754298234461,0.56202,3558.3,3558.2,3.2078]
[1754298234664,0.56208,3558.0,3557.8,0.56209]
[1754298234865,19.76408,3558.0,3557.8,0.56209]
[1754298236158,0.56208,3557.9,3557.7,3.76991]
[1754298236354,19.202,3558.0,3557.2,3.2078]
[1754298236355,0.56212,3557.7,3557.2,3.2078]
[1754298236560,19.202,3557.6,3557.3,0.56217]
[1754298236867,0.56224,3557.0,3556.8,0.56226]
[1754298237164,19.76424,3556.9,3556.7,3.77007]
[1754298237366,19.208,3556.8,3556.7,3.77007]
[1754298237761,19.207,3556.8,3556.7,3.77007]
[1754298238361,3.2078,3557.5,3557.4,0.56216]
[1754298238661,19.207,3557.5,3557.4,0.56216]
[1754298239867,19.207,3557.5,3557.2,3.2078]
[1754298240268,0.56216,3557.5,3557.3,0.56217]
[1754298240471,19.21,3557.4,3557.3,0.56217]
[1754298243173,0.56212,3557.7,3557.5,0.56214]
[1754298243362,19.205,3557.6,3557.5,0.56214]
[1754298243566,0.56215,3557.5,3557.4,0.56215]
[1754298244072,19.76714,3557.6,3557.4,0.56215]
[1754298244769,0.56214,3557.6,3557.4,0.56215]
[1754298244970,19.204,3557.5,3557.4,0.56215]
[1754298245464,19.204,3557.5,3556.8,3.2078]
[1754298245670,0.56224,3557.0,3556.8,3.77005]
[1754298245975,0.56224,3557.0,3556.9,0.56224]
[1754298246175,19.78824,3557.0,3556.8,3.77005]
[1754298246378,19.78824,3557.0,3556.8,3.2078]
[1754298246570,0.56226,3556.8,3556.7,0.56226]
[1754298247265,0.5623,3556.6,3556.5,0.5623]
[1754298247472,19.224,3556.6,3556.5,0.56231]
[1754298256479,0.56231,3556.5,3556.4,3.2078]
[1754298256674,19.7863,3556.6,3556.5,0.56231]
[1754298257878,19.224,3556.6,3556.5,0.56231]
[1754298258079,0.56227,3556.8,3556.7,0.56227]
[1754298258280,0.56225,3556.9,3556.8,0.56225]
[1754298258580,0.56227,3556.8,3556.7,0.56226]
[1754298260082,3.2078,3557.2,3556.7,0.56226]
[1754298260278,0.56224,3557.0,3556.9,0.56224]
[1754298260479,19.78024,3557.0,3556.9,0.56224]
[1754298260679,19.218,3557.0,3556.9,0.56224]
[1754298260981,0.56222,3557.1,3556.9,0.56224]
[1754298261186,19.78024,3557.0,3556.4,4.6136]
[1754298261388,0.56227,3556.8,3556.4,4.6136]
[1754298261682,0.5623,3556.6,3556.5,0.56231]
[1754298261883,0.56228,3556.7,3556.6,0.56228]
[1754298262088,0.56227,3556.8,3556.7,0.56226]
[1754298262385,0.56229,3556.7,3556.6,0.56228]
[1754298263677,0.5623,3556.6,3556.4,3.77011]
[1754298263878,19.22,3556.5,3556.4,3.77011]
[1754298264084,19.22,3556.5,3556.4,3.2078]
[1754298268084,19.214,3556.5,3556.4,3.77012]
[1754298268593,3.2078,3557.6,3557.4,0.56215]
[1754298268797,20.10276971,3557.5,3557.4,0.56215]
[1754298268995,19.95056009,3557.5,3557.4,0.56215]
[1754298269401,0.74056009,3557.5,3557.4,0.56215]
[1754298269997,0.74056009,3557.9,3557.8,0.5621]
[1754298270602,0.74056009,3558.0,3557.8,0.5621]
[1754298270797,3.2078,3558.5,3558.4,0.56201]
[1754298271003,23.18043148,3558.5,3558.4,0.56201]
[1754298271303,23.74243148,3558.5,3558.2,0.56203]
[1754298271502,0.74163148,3558.4,3558.2,0.56203]
[1754298271806,22.4388,3558.5,3557.7,3.2078]
[1754298272105,0.56207,3558.1,3557.9,0.56207]
[1754298272298,19.78907,3558.1,3557.9,0.56207]
[1754298272700,19.227,3558.1,3557.9,0.56207]
[1754298273207,0.56207,3558.0,3557.8,0.56209]
[1754298273403,19.227,3558.1,3557.9,0.56207]
[1754298273995,0.56203,3558.3,3558.0,0.56206]
[1754298274199,19.233,3558.2,3558.0,0.56206]
[1754298275794,3.2078,3558.5,3558.1,0.56204]
[1754298275995,19.227,3558.4,3558.3,0.56201]
[1754298276197,19.228,3558.8,3558.3,0.56201]
[1754298276605,0.56198,3558.6,3558.1,3.2078]
[1754298277003,0.56198,3558.6,3558.4,0.562]
[1754298277202,19.228,3558.8,3558.3,0.56201]
[1754298277910,0.562,3558.5,3558.4,0.562]
[1754298278904,0.562,3558.5,3558.1,3.2078]
[1754298279203,0.56202,3558.3,3558.2,0.56204]
[1754298279506,0.56202,3558.3,3558.1,3.76985]
[1754298279708,0.56208,3558.0,3557.9,0.56207]
[1754298279902,1.40522,3557.9,3557.2,3.2078]